bitfinex-derivatives/quotes_BTCF0:USTF0_20250313
["timestamp","ask_amount","ask_price","bid_price","bid_amount"]
[1741873134971,0.0606129,82506.0,82462.0,0.4194]
[1741873135272,1.40844,82508.0,82507.0,0.1212236]
[1741873135477,1.40844,82508.0,82485.0,0.6062777]
[1741873135478,1.40844,82508.0,82504.0,0.0606138]
[1741873135775,0.3342217,82515.0,82514.0,0.1212133]
[1741873136274,0.3342217,82515.0,82512.0,0.0606075]
[1741873136275,0.1212133,82514.0,82513.0,0.4061147]
[1741873136471,0.1212133,82514.0,82513.0,0.2849]
[1741873136669,0.1212133,82514.0,82513.0,0.4061148]
[1741873136881,0.47584918,82515.0,82506.0,0.0001818]
[1741873136882,0.41524328,82515.0,82506.0,0.0001818]
[1741873137069,0.0606098,82510.0,82499.0,0.1378]
[1741873137370,0.1212383,82497.0,82496.0,0.1471]
[1741873137580,0.1212383,82497.0,82487.0,0.1378]
[1741873137581,0.1212515,82488.0,82487.0,0.1378]
[1741873137772,0.19404,82497.0,82463.0,0.060644]
[1741873137773,0.0606271,82487.0,82463.0,0.1488]
[1741873137970,0.1819065,82479.0,82478.0,0.1818906]
[1741873138168,0.1819065,82479.0,82478.0,0.2006313]
[1741873138374,0.0001818,82487.0,82486.0,0.1212545]
[1741873138876,1.40844,82498.0,82497.0,0.1212383]
[1741873139070,0.0606198,82497.0,82483.0,0.14]
[1741873139271,0.1489,82497.0,82483.0,0.14]
[1741873139467,1.40908,82498.0,82483.0,0.14]
[1741873139668,1.5296795,82498.0,82497.0,0.1212383]
[1741873139868,0.1212398,82496.0,82495.0,0.0606199]
[1741873140073,0.1212442,82493.0,82492.0,0.14]
[1741873140277,1.40916,82498.0,82496.0,0.1212398]
[1741873140474,0.0001818,82506.0,82496.0,0.1212398]
[1741873140475,0.24321677,82502.0,82501.0,0.1212324]
[1741873140783,0.01431677,82502.0,82501.0,0.1212324]
[1741873141775,0.0001818,82506.0,82501.0,0.01]
[1741873141980,0.0001818,82506.0,82505.0,0.1212265]
[1741873142177,0.32055195,82517.0,82513.0,0.1212148]
[1741873142383,0.5823333,82514.0,82513.0,0.1212148]
[1741873142884,0.5823333,82514.0,82505.0,0.0606129]
[1741873142885,0.1818459,82506.0,82505.0,0.0606118]
[1741873143082,0.46112,82514.0,82512.0,0.1212163]
[1741873143281,0.5823348,82514.0,82513.0,0.1212148]
[1741873143475,0.46112,82514.0,82513.0,0.1212148]
[1741873143981,0.5823333,82514.0,82513.0,0.1212148]
[1741873144180,0.46112,82514.0,82513.0,0.1212148]
[1741873144374,0.5823333,82514.0,82513.0,0.1212148]
[1741873144578,0.46112,82514.0,82513.0,0.1212148]
[1741873144888,0.1818547,82501.0,82500.0,0.1212285]
[1741873145187,0.27222826,82510.0,82487.0,0.00144]
[1741873145384,0.19196,82512.0,82503.0,0.1212295]
[1741873145385,0.3334443,82504.0,82503.0,0.1212295]
[1741873145587,0.3334443,82504.0,82485.0,0.1212513]
[1741873145588,0.0606291,82486.0,82485.0,0.1212513]
[1741873145791,0.0606253,82489.0,82485.0,0.1212513]
[1741873146091,0.1818782,82492.0,82491.0,0.060622]
[1741873146385,0.0001818,82495.0,82482.0,0.0606299]
[1741873146571,0.2425006,82493.0,82492.0,0.1212427]
[1741873147184,0.0606244,82493.0,82492.0,0.1212427]
[1741873147690,0.1212471,82491.0,82490.0,0.1392]
[1741873148079,0.1212589,82483.0,82482.0,0.005]
[1741873148281,0.06486819,82492.0,82469.0,0.0606392]
[1741873148481,0.0606352,82477.0,82470.0,0.148]
[1741873148682,0.0606484,82458.0,82457.0,0.1212912]
[1741873148883,0.0606437,82467.0,82462.0,0.0606444]
[1741873149088,0.142,82475.0,82441.0,0.00148]
[1741873149390,0.1819847,82444.0,82443.0,0.1213103]
[1741873149585,0.0606664,82435.0,82431.0,0.060667]
[1741873149788,0.0606661,82434.0,82430.0,0.0119329]
[1741873149988,0.0606711,82428.0,82427.0,0.182004]
[1741873150486,0.0606686,82430.0,82416.0,0.36079666]
[1741873150487,0.1213457,82424.0,82423.0,0.18215625]
[1741873150688,0.2004712,82427.0,82416.0,0.36079666]
[1741873150881,0.1820331,82419.0,82418.0,0.182026]
[1741873151281,0.121356,82417.0,82416.0,0.36079666]
[1741873151583,0.121356,82417.0,82416.0,0.48215416]
[1741873151887,0.12149735,82417.0,82416.0,0.1213575]
[1741873152286,0.00014135,82417.0,82416.0,0.1213575]
[1741873152796,5e-08,82417.0,82416.0,0.6726575]
[1741873152985,5e-08,82417.0,82416.0,0.8231575]
[1741873153189,5e-08,82417.0,82416.0,0.6731575]
[1741873153388,0.18992,82438.0,82418.0,0.00499995]
[1741873153588,0.1820117,82430.0,82429.0,0.1213315]
[1741873153888,0.1820117,82430.0,82418.0,0.00499995]
[1741873153889,0.1213413,82427.0,82426.0,0.0606712]
[1741873154192,0.0606624,82439.0,82426.0,0.0606712]
[1741873154193,0.18984,82443.0,82439.0,0.1213236]
[1741873154492,0.1213348,82435.0,82434.0,0.1213267]
[1741873154693,0.2083618,82439.0,82424.0,0.1505]
[1741873154888,0.1477,82439.0,82428.0,0.1445]
[1741873155096,0.18984,82443.0,82439.0,0.1213236]
[1741873155586,0.12150404,82440.0,82439.0,0.2718236]
[1741873155786,0.12150404,82440.0,82438.0,0.1213251]
[1741873155991,0.1213236,82439.0,82438.0,0.2426495]
[1741873156192,0.1213236,82439.0,82430.0,0.1489]
[1741873156193,0.1442,82439.0,82430.0,0.1489]
[1741873156391,0.10731689,82432.0,82431.0,0.1213354]
[1741873156589,0.10731689,82432.0,82431.0,0.2658354]
[1741873156785,0.10731689,82432.0,82431.0,0.2758354]
[1741873157192,0.22865079,82432.0,82431.0,0.1213354]
[1741873157492,0.22865079,82432.0,82431.0,0.13477449]
[1741873157690,0.22865079,82432.0,82431.0,0.1223354]
[1741873157890,0.10731689,82432.0,82431.0,0.001]
[1741873158090,0.10731689,82432.0,82388.0,0.0606993]
[1741873158388,0.27222826,82430.0,82404.0,0.1489]
[1741873158585,0.1820451,82415.0,82414.0,0.06068]
[1741873158786,0.19084,82428.0,82405.0,0.01337211]
[1741873158994,0.10731689,82432.0,82425.0,0.0606715]
[1741873159197,0.10731689,82432.0,82431.0,0.1213354]
[1741873159988,0.10731689,82435.0,82434.0,0.121331]
[1741873160181,0.10731689,82435.0,82434.0,0.131331]
[1741873160182,0.01722659,82435.0,82434.0,0.131331]
[1741873160593,0.14327112,82440.0,82434.0,0.281331]
[1741873160785,0.1213295,82435.0,82431.0,0.0616675]
[1741873161094,0.32525972,82440.0,82439.0,0.1213236]
[1741873161285,0.14327112,82440.0,82439.0,0.1213236]
[1741873161590,0.26459322,82440.0,82439.0,0.1213236]
[1741873161793,0.26459322,82440.0,82434.0,0.001]
[1741873161794,0.1213295,82435.0,82434.0,0.001]
[1741873162096,0.1213295,82435.0,82434.0,0.122331]
[1741873162589,0.14327112,82440.0,82434.0,0.001]
[1741873162789,0.14327112,82440.0,82439.0,0.1213236]
[1741873163185,0.14727112,82440.0,82439.0,0.1213236]
[1741873163586,0.03158199,82445.0,82444.0,0.1213162]
[1741873163791,0.0606348,82476.0,82450.0,0.1213074]
[1741873163999,0.12258798,82455.0,82454.0,0.1213015]
[1741873164294,0.31009087,82484.0,82457.0,0.6064858]
[1741873164491,0.2633155,82513.0,82512.0,0.1212163]
[1741873164687,0.0606093,82511.0,82487.0,0.1914]
[1741873164891,0.1421,82513.0,82470.0,0.27222826]
[1741873164892,0.1212501,82489.0,82488.0,0.2636515]
[1741873165091,0.1818808,82488.0,82485.0,0.1501]
[1741873165293,0.0606251,82489.0,82480.0,0.00018179]
[1741873165486,0.1212618,82482.0,82481.0,0.1212605]
[1741873165686,0.0606273,82488.0,82487.0,0.1212515]
[1741873166083,0.00018179,82495.0,82480.0,0.15028179]
[1741873166285,0.00018179,82495.0,82494.0,0.1212427]
[1741873166789,0.00018179,82495.0,82480.0,0.00018179]
[1741873166985,0.12142549,82495.0,82494.0,0.1212427]
[1741873167192,0.00018179,82495.0,82494.0,0.1212427]
[1741873167388,0.00018179,82495.0,82491.0,0.3001]
[1741873167593,0.00018179,82495.0,82481.0,0.01369428]
[1741873167795,0.06063,82483.0,82480.0,0.00018179]
[1741873168093,0.1213059,82453.0,82452.0,0.121302]
[1741873168300,0.0606436,82464.0,82451.0,0.1418]
[1741873168489,0.1212896,82465.0,82464.0,0.0606419]
[1741873168688,0.19068,82481.0,82457.0,0.1212949]
[1741873168894,0.1212971,82458.0,82457.0,0.3638818]
[1741873169093,0.0606326,82479.0,82463.0,0.0606427]
[1741873169094,0.1212934,82464.0,82463.0,0.0606427]
[1741873169291,0.00018192,82466.0,82465.0,0.1212853]
[1741873169702,0.12146582,82466.0,82465.0,0.13492057]
[1741873169992,0.00018192,82466.0,82465.0,0.27672057]
[1741873170399,0.00018192,82466.0,82465.0,0.04796101]
[1741873170590,0.12146582,82466.0,82465.0,0.15737394]
[1741873170790,0.12146582,82466.0,82465.0,0.16924666]
[1741873170791,0.00018192,82466.0,82465.0,0.16924666]
[1741873170992,0.00018192,82466.0,82465.0,0.15737394]
[1741873171287,0.12146582,82466.0,82465.0,0.15737394]
[1741873171493,7.019e-05,82466.0,82465.0,0.15737394]
[1741873171703,0.12135409,82466.0,82465.0,0.03608864]
[1741873172196,7.019e-05,82466.0,82447.0,0.01194335]
[1741873172499,0.0606217,82494.0,82462.0,0.0606447]
[1741873172696,0.181886,82487.0,82486.0,0.1212515]
[1741873172999,0.1481,82489.0,82488.0,0.1212515]
[1741873173499,0.1447,82513.0,82512.0,0.1212163]
[1741873173794,0.46112,82514.0,82513.0,0.1212148]
[1741873174096,0.46112,82514.0,82493.0,0.1904]
[1741873174097,0.0606197,82497.0,82496.0,0.1212386]
[1741873174290,0.46112,82514.0,82496.0,0.01206378]
[1741873174489,0.1212383,82498.0,82497.0,0.13329808]
[1741873174696,0.0606205,82496.0,82495.0,0.1212401]
[1741873174900,0.1212378,82498.0,82496.0,0.0606197]
[1741873175100,0.0606175,82500.0,82488.0,0.13788179]
[1741873175101,0.1212501,82489.0,82488.0,0.00018179]
[1741873176200,0.0606269,82487.0,82464.0,0.0606423]
[1741873176397,0.1496,82486.0,82485.0,0.1212559]
[1741873176595,0.1212604,82482.0,82481.0,0.2589584]
[1741873176796,0.1222508,82489.0,82488.0,0.1212515]
[1741873176995,0.1222508,82489.0,82486.0,0.0606266]
[1741873177192,0.1222508,82489.0,82468.0,0.0606398]
[1741873177193,0.001,82489.0,82462.0,0.1212867]
[1741873177494,0.6062662,82487.0,82463.0,0.01210453]
[1741873177701,0.1212853,82465.0,82464.0,0.01210453]
[1741873177894,0.1212853,82465.0,82464.0,0.13339284]
[1741873178100,0.1212853,82465.0,82464.0,0.13339299]
[1741873178305,0.1212853,82465.0,82464.0,0.1212868]
[1741873178500,0.1212883,82463.0,82462.0,0.1819313]
[1741873178807,0.1388,82464.0,82445.0,0.0606571]
[1741873179103,0.1213095,82454.0,82453.0,0.3032509]
[1741873179308,0.0606394,82470.0,82453.0,0.01205]
[1741873179492,0.145,82461.0,82460.0,0.1212927]
[1741873179693,0.2600803,82470.0,82469.0,0.1212795]
[1741873179907,0.1388,82470.0,82458.0,0.2854]
[1741873180106,0.1388,82470.0,81853.0,0.1204104]
[1741873180107,0.1212927,82460.0,82459.0,0.13344334]
[1741873180409,0.0606431,82465.0,82459.0,0.01215044]
[1741873180703,0.2878,82460.0,82459.0,0.1212942]
[1741873180899,0.1449,82481.0,82459.0,0.01210137]
[1741873181100,0.145,82480.0,82471.0,0.1212751]
[1741873181308,0.145,82480.0,82472.0,0.13337647]
[1741873181805,0.0606339,82477.0,82472.0,0.13337647]
[1741873182002,0.2056321,82480.0,82472.0,0.13337647]
[1741873182003,0.1428,82479.0,82472.0,0.13337647]
[1741873182407,0.12145539,82473.0,82472.0,0.05418943]
[1741873182595,0.12145539,82473.0,82472.0,0.03451646]
[1741873182799,0.12145539,82473.0,82472.0,0.02241509]
[1741873183003,0.00018179,82473.0,82472.0,0.02241509]
[1741873183194,0.00018179,82473.0,82472.0,0.15598695]
[1741873183395,0.060621,82495.0,82477.0,0.0606335]
[1741873183602,0.1212528,82491.0,82490.0,0.1212442]
[1741873183798,0.1212528,82491.0,82490.0,0.13354096]
[1741873183997,0.1212528,82491.0,82490.0,0.15595605]
[1741873184203,0.2968,82494.0,82490.0,0.03471185]
[1741873184404,0.4180457,82492.0,82491.0,0.02633399]
[1741873184604,0.4180457,82492.0,82491.0,0.01403523]
[1741873184904,0.2968,82492.0,82491.0,0.14758084]
[1741873185107,0.4180457,82492.0,82491.0,0.02633374]
[1741873185309,0.4180457,82492.0,82491.0,0.01403523]
[1741873185798,0.2978,82492.0,82484.0,0.00018192]
[1741873186004,0.2978,82492.0,82491.0,0.1212471]
[1741873186409,0.001,82492.0,82491.0,0.13365525]
[1741873186610,0.001,82492.0,82491.0,0.15612005]
[1741873186808,0.001,82492.0,82491.0,0.17597617]
[1741873187004,0.001,82492.0,82491.0,0.56597617]
[1741873187005,1e-07,82492.0,82491.0,0.56597617]
[1741873187501,0.1526,82512.0,82491.0,0.56597617]
[1741873187502,0.25094445,82528.0,82491.0,0.54609756]
[1741873187703,0.25158445,82528.0,82513.0,0.1212148]
[1741873187911,0.20996815,82528.0,82527.0,0.1211942]
[1741873188113,0.1494,82543.0,82527.0,0.03240815]
[1741873188309,0.1494,82543.0,82533.0,0.1211854]
[1741873188509,0.1494,82543.0,82533.0,0.01240815]
[1741873188510,0.40797766,82534.0,82533.0,0.01240815]
[1741873188813,0.28679366,82534.0,82533.0,0.01240815]
[1741873189021,0.40797766,82534.0,82533.0,0.01240815]
[1741873189313,0.40797766,82534.0,82525.0,0.0001818]
[1741873189314,0.001,82528.0,82527.0,0.1211942]
[1741873189514,0.001,82528.0,82527.0,0.13323539]
[1741873190309,0.001,82528.0,82527.0,0.01204119]
[1741873190515,0.001,82528.0,82527.0,0.13323539]
[1741873190913,0.1494,82533.0,82532.0,0.1211869]
[1741873191117,0.1494,82533.0,82532.0,0.13322809]
[1741873191313,0.121354,82542.0,82541.0,0.1211737]
[1741873191509,0.0001818,82542.0,82529.0,0.0605954]
[1741873191718,0.1817833,82532.0,82531.0,0.1211855]
[1741873191918,0.1817833,82532.0,82531.0,0.13350735]
[1741873192218,0.1817833,82532.0,82531.0,0.13351025]
[1741873192419,0.1211858,82533.0,82532.0,0.1211854]
[1741873192612,0.0605959,82531.0,82528.0,0.060596]
[1741873192815,0.2714898,82530.0,82529.0,0.13325343]
[1741873193009,0.4202898,82530.0,82529.0,0.13325343]
[1741873193606,0.4202898,82530.0,82529.0,0.01206213]
[1741873193807,0.4202898,82530.0,82529.0,0.1211913]
[1741873193808,0.2991,82530.0,82529.0,0.1211913]
[1741873194013,0.1503,82530.0,82529.0,0.13323567]
[1741873194424,0.2714898,82530.0,82529.0,0.13323567]
[1741873194628,0.1503,82530.0,82529.0,0.13330096]
[1741873194822,0.1503,82530.0,82525.0,0.2060798]
[1741873194823,0.1503,82530.0,82525.0,0.1454818]
[1741873195024,0.1211957,82526.0,82525.0,0.1213779]
[1741873195215,0.1211957,82526.0,82525.0,0.0001818]
[1741873195622,0.1212236,82507.0,82506.0,0.1212241]
[1741873195823,0.1212251,82506.0,82475.0,0.0182]
[1741873196125,0.1212354,82499.0,82485.0,0.43163492]
[1741873196325,0.1212354,82499.0,82485.0,0.43311492]
[1741873196531,0.1212354,82499.0,82485.0,0.43163492]
[1741873196731,0.1212354,82499.0,82490.0,0.0001818]
[1741873196930,0.18516,82502.0,82490.0,0.0001818]
[1741873197126,0.0001818,82507.0,82506.0,0.1212251]
[1741873197438,0.2642054,82507.0,82506.0,0.1212251]
[1741873197727,0.2642054,82507.0,82506.0,0.01211778]
[1741873197918,0.2907818,82507.0,82503.0,0.0606134]
[1741873198117,0.121228,82506.0,82505.0,0.1212251]
[1741873198321,0.0001818,82507.0,82506.0,0.1212251]
[1741873198531,0.1499,82520.0,82506.0,0.15951813]
[1741873198723,0.0606072,82515.0,82514.0,0.1212074]
[1741873199029,0.1428,82519.0,82518.0,0.1212074]
[1741873199231,0.18412,82538.0,82518.0,0.1212074]
[1741873199232,0.181791,82529.0,82528.0,0.1211898]
[1741873199732,0.0605957,82529.0,82528.0,0.1211898]
[1741873199923,0.1428,82530.0,82529.0,0.1211913]
[1741873200231,0.17964209,82536.0,82529.0,0.01378978]
[1741873200530,0.17964209,82536.0,82503.0,0.19566622]
[1741873200531,0.1818034,82523.0,82503.0,0.19566622]
[1741873200727,0.121203,82521.0,82503.0,0.01186622]
[1741873200927,0.27434355,82520.0,82482.0,0.1618642]
[1741873201231,0.27434355,82520.0,82483.0,0.0119642]
[1741873201232,0.27434355,82510.0,82483.0,0.0119642]
[1741873201430,0.46333306,82520.0,82508.0,0.1212221]
[1741873201431,0.1499,82509.0,82508.0,0.1212221]
[1741873201633,0.1499,82509.0,82504.0,0.121226]
[1741873201634,0.0606149,82505.0,82504.0,0.121226]
[1741873201823,0.2969,82509.0,82508.0,0.1212221]
[1741873202025,0.2969,82509.0,82508.0,0.1332489]
[1741873202225,0.147,82509.0,82508.0,0.1332489]
[1741873202429,0.0001818,82513.0,82508.0,0.1332489]
[1741873202732,0.061,98790.0,82532.0,0.1211869]
[1741873202733,0.00064,82533.0,82532.0,0.1211869]
[1741873202934,0.00064,82533.0,82511.0,0.6060829]
[1741873202935,0.1399,82532.0,82513.0,0.18464]
[1741873203229,0.1452,82531.0,82520.0,0.0606015]
[1741873203425,0.1399,82532.0,82521.0,0.0318867]
[1741873203622,0.17964209,82536.0,82535.0,0.1211825]
[1741873203828,0.121181,82538.0,82537.0,0.0605891]
[1741873204033,0.121181,82538.0,82537.0,0.03188439]
[1741873204235,0.2851,82538.0,82537.0,0.13338146]
[1741873204435,0.0605744,82558.0,82537.0,0.01220196]
[1741873204629,1.40912,82560.0,82539.0,0.1211766]
[1741873204630,0.1399,82540.0,82539.0,0.1211766]
[1741873204832,0.2610751,82540.0,82539.0,0.0123179]
[1741873205132,0.2803,82540.0,82539.0,0.01231759]
[1741873205336,0.2803,82540.0,82539.0,0.1211766]
[1741873205535,0.27434355,82580.0,82539.0,0.1211766]
[1741873205536,0.01166065,82587.0,82540.0,0.0182]
[1741873205831,0.1404,82594.0,82568.0,0.27434355]
[1741873206033,0.1404,82594.0,82577.0,0.27434355]
[1741873206034,0.1535,82593.0,82577.0,0.27434355]
[1741873206224,0.17320169,82593.0,82578.0,0.1560163]
[1741873206427,0.16010169,82592.0,82579.0,0.01206751]
[1741873206621,0.121115,82581.0,82580.0,0.01206751]
[1741873206835,0.0605502,82591.0,82577.0,0.00018168]
[1741873206836,0.1211194,82578.0,82577.0,0.00018168]
[1741873207038,0.25180763,82597.0,82577.0,0.01233673]
[1741873207232,0.25180763,82597.0,82578.0,0.16365505]
[1741873207233,0.1211179,82579.0,82578.0,0.16365505]
[1741873207438,0.01970169,82592.0,82578.0,0.16364165]
[1741873207731,0.0605573,82582.0,82577.0,0.00018168]
[1741873208033,0.01970169,82593.0,82578.0,0.01212616]
[1741873208222,0.01970169,82593.0,82577.0,0.00018168]
[1741873208223,0.1211164,82581.0,82580.0,0.1816735]
[1741873208423,0.2985,82592.0,82591.0,0.1211003]
[1741873208621,0.4195988,82592.0,82591.0,0.1211003]
[1741873208832,0.2985,82592.0,82591.0,0.1211003]
[1741873209031,0.00018168,82594.0,82591.0,0.43331459]
[1741873209032,8e-08,82594.0,82591.0,0.43331459]
[1741873209221,0.46112,82601.0,82599.0,0.1210886]
[1741873209422,0.39376832,82622.0,82599.0,0.31173273]
[1741873209626,0.1415,82621.0,82600.0,0.30211429]
[1741873209821,0.1415,82615.0,82601.0,0.01221429]
[1741873210032,0.0605342,82614.0,82611.0,0.0605349]
[1741873210222,0.12106,82619.0,82615.0,0.1210651]
[1741873210534,0.1816011,82615.0,82614.0,0.1210666]
[1741873210833,0.00018168,82621.0,82615.0,0.1210651]
[1741873211135,0.0605234,82628.0,82615.0,0.29963247]
[1741873211336,0.1210506,82625.0,82624.0,0.121049]
[1741873211633,0.2020243,82627.0,82616.0,0.18604]
[1741873211836,0.1210622,82617.0,82616.0,0.1412]
[1741873212027,0.1210622,82617.0,82600.0,0.27434355]
[1741873212028,0.1446,82624.0,82592.0,0.01173247]
[1741873212225,0.1446,82616.0,82583.0,0.121112]
[1741873212536,0.27434355,82610.0,82571.0,0.1412]
[1741873212725,0.1211223,82577.0,82572.0,0.1455]
[1741873212930,0.1211252,82575.0,82574.0,0.121124]
[1741873213130,0.1536,82576.0,82575.0,0.1211238]
[1741873213335,0.1446,82594.0,82575.0,0.4360614]
[1741873213524,0.1211172,82582.0,82581.0,0.1211135]
[1741873213731,0.1211223,82576.0,82575.0,0.1455]
[1741873214035,0.0605602,82578.0,82572.0,0.01181104]
[1741873214338,0.1211282,82572.0,82571.0,0.003]
[1741873214730,0.1211245,82575.0,82574.0,0.1211252]
[1741873214936,0.01970169,82576.0,82572.0,0.0605641]
[1741873215134,0.1211267,82573.0,82572.0,0.1403]
[1741873215331,0.1211282,82572.0,82571.0,0.003]
[1741873215536,0.1494,82572.0,82571.0,0.1241296]
[1741873215841,0.12776442,82572.0,82571.0,0.1211267]
[1741873216038,0.1211355,82567.0,82566.0,0.12131856]
[1741873216233,0.1211355,82567.0,82566.0,0.00018156]
[1741873216428,0.12777172,82567.0,82566.0,0.01353623]
[1741873216937,0.00663622,82567.0,82566.0,0.01353623]
[1741873217142,0.1,98470.0,82566.0,0.01353623]
[1741873217143,0.4092,82639.0,82566.0,0.17018156]
[1741873217340,0.1816372,82599.0,82598.0,0.1210853]
[1741873217534,0.1816487,82594.0,82591.0,0.0605496]
[1741873217734,0.1211091,82585.0,82584.0,0.2591106]
[1741873217940,0.0605506,82591.0,82589.0,0.0605515]
[1741873218143,0.1454,82590.0,82589.0,0.1816547]
[1741873218335,0.00663622,82612.0,82611.0,0.121071]
[1741873218533,0.1454,82612.0,82611.0,0.401071]
[1741873218744,1.40728,82647.0,82646.0,0.1210197]
[1741873218745,0.181531,82647.0,82646.0,0.1210197]
[1741873218940,0.15033622,82646.0,82637.0,0.0605159]
[1741873219238,0.1437,82646.0,82623.0,0.060526]
[1741873219450,0.1210373,82634.0,82633.0,0.12122036]
[1741873219938,0.12767352,82634.0,82633.0,0.00018156]
[1741873220528,0.13167352,82634.0,82633.0,0.00018156]
[1741873220941,0.1815924,82621.0,82620.0,0.1210504]
[1741873221233,0.1210593,82619.0,82618.0,0.0605298]
[1741873221429,0.06716582,82621.0,82618.0,0.0605298]
[1741873221628,0.0605296,82621.0,82620.0,0.1210578]
[1741873221831,1.68162355,82670.0,82619.0,0.1402]
[1741873222032,0.1210476,82628.0,82627.0,0.1210446]
[1741873222247,0.1210476,82628.0,82627.0,0.1402]
[1741873222544,0.1815726,82627.0,82626.0,0.1210476]
[1741873222744,0.00018156,82629.0,82627.0,0.1210476]
[1741873222940,0.06070396,82629.0,82628.0,0.2612461]
[1741873223144,0.00018156,82629.0,82628.0,0.2612461]
[1741873223445,0.12122616,82629.0,82628.0,0.2612461]
[1741873223640,0.00018156,82629.0,82628.0,0.2612461]
[1741873224036,0.12122616,82629.0,82628.0,0.1402]
[1741873224240,0.12122616,82629.0,82628.0,0.1210461]
[1741873224241,0.00681778,82629.0,82628.0,0.1210461]
[1741873224448,0.1210461,82628.0,82623.0,0.2466061]
[1741873224747,0.1210681,82613.0,82604.0,0.1210802]
[1741873224933,0.12770432,82613.0,82605.0,0.1501]
[1741873225138,0.12770432,82613.0,82602.0,0.1210798]
[1741873225139,0.00663622,82613.0,82602.0,0.1210798]
[1741873225343,0.0605481,82594.0,82591.0,0.1501]
[1741873225847,0.15643622,82593.0,82590.0,0.2874618]
[1741873226037,0.27434355,82630.0,82590.0,0.2874618]
[1741873226239,0.1816394,82598.0,82597.0,0.1210888]
[1741873226443,0.0605451,82598.0,82597.0,0.1210888]
[1741873226749,0.2923,82613.0,82609.0,0.1210695]
[1741873226750,0.0605366,82610.0,82609.0,0.1210695]
[1741873226943,0.2923,82613.0,82609.0,0.1210695]
[1741873226944,0.00663622,82612.0,82611.0,0.121071]
[1741873227249,0.1816252,82605.0,82598.0,0.0605448]
[1741873227542,0.1210849,82606.0,82605.0,0.0605393]
[1741873227748,0.0605456,82599.0,82598.0,0.1210885]
[1741873227940,0.00663622,82617.0,82585.0,0.060554]
[1741873228140,0.0605338,82614.0,82590.0,0.0605507]
[1741873228342,0.00663622,82617.0,82590.0,0.01]
[1741873228541,0.1211018,82590.0,82589.0,0.00018156]
[1741873228738,0.1210955,82597.0,82596.0,0.0605454]
[1741873228938,0.1211018,82590.0,82589.0,0.00018156]
[1741873229238,0.00018156,82605.0,82589.0,0.01018156]
[1741873229441,0.00663622,82604.0,82603.0,0.1210827]
[1741873229737,0.00018156,82605.0,82604.0,0.1210813]
[1741873229938,0.12126136,82605.0,82604.0,0.2633813]
[1741873230147,0.00018156,82605.0,82604.0,0.2633813]
[1741873230344,0.00018156,82605.0,82603.0,0.1210817]
[1741873230540,0.00018156,82605.0,82590.0,0.33489405]
[1741873230541,0.1211011,82593.0,82592.0,0.1210946]
[1741873230735,0.0605466,82596.0,82595.0,0.1210945]
[1741873230736,0.1816422,82596.0,82595.0,0.1210945]
[1741873230945,0.1211018,82590.0,82589.0,0.12128186]
[1741873231148,0.1211018,82590.0,82589.0,0.24238326]
[1741873231349,0.27434355,82630.0,82589.0,0.00018156]
[1741873231549,0.15733622,82603.0,82602.0,0.1210842]
[1741873231842,0.00663622,82603.0,82602.0,0.1210842]
[1741873232050,0.18524,82645.0,82602.0,0.6794]
[1741873232237,0.00064,82637.0,82635.0,0.1210358]
[1741873232443,0.1507,82644.0,82621.0,0.0605281]
[1741873232639,0.14783622,82643.0,82642.0,0.1210256]
[1741873232841,0.12766032,82643.0,82642.0,0.1210256]
[1741873233039,0.00663622,82643.0,82640.0,0.1815392]
[1741873233240,0.00663622,82643.0,82632.0,0.281]
[1741873233241,0.27836182,82642.0,82641.0,0.1395]
[1741873233439,0.27836182,82642.0,82634.0,0.00018156]
[1741873233440,0.1210358,82635.0,82634.0,0.00018156]
[1741873233640,0.00663622,82641.0,82634.0,0.12121886]
[1741873233948,0.00663622,82641.0,82640.0,0.1210285]
[1741873234148,0.00663622,82641.0,82636.0,0.1210336]
[1741873234149,0.00663622,82640.0,82636.0,0.1210336]
[1741873234443,0.26333,82639.0,82638.0,0.1395]
[1741873234637,0.0605171,82637.0,82634.0,0.12121886]
[1741873234840,0.1423,82636.0,82635.0,0.1210358]
[1741873235043,0.2633344,82636.0,82635.0,0.1428]
[1741873235351,0.26997062,82636.0,82635.0,0.2638358]
[1741873235550,0.14893622,82636.0,82635.0,0.2638358]
[1741873235739,0.002,82640.0,82639.0,0.12103]
[1741873236553,0.1230285,82640.0,82639.0,0.12103]
[1741873236952,0.1488,82641.0,82639.0,0.12103]
[1741873237255,0.1210358,82635.0,82634.0,0.12121526]
[1741873237451,0.1210358,82635.0,82634.0,0.24224956]
[1741873237851,0.00663622,82635.0,82634.0,0.12121886]
[1741873238048,0.1815519,82639.0,82638.0,0.1210285]
[1741873238242,0.1210358,82635.0,82634.0,0.00018156]
[1741873238647,0.12767202,82635.0,82634.0,0.00018156]
[1741873238847,0.00663622,82635.0,82634.0,0.00018156]
[1741873239051,0.12767202,82635.0,82634.0,0.25881886]
[1741873239355,0.12767202,82635.0,82634.0,0.00018156]
[1741873239747,0.12767202,82635.0,82634.0,0.12121886]
[1741873239948,0.12767202,82635.0,82634.0,6e-08]
[1741873240151,0.1210432,82630.0,82629.0,0.1740349]
[1741873240457,0.1210505,82625.0,82607.0,0.0605382]
[1741873240752,0.1210505,82625.0,82599.0,0.27530453]
[1741873240753,0.01207679,82625.0,82599.0,0.27530453]
[1741873240956,0.1210871,82600.0,82599.0,0.39639223]
[1741873241358,0.1210871,82600.0,82599.0,0.27530453]
[1741873242056,0.1210871,82600.0,82591.0,0.00018156]
[1741873242057,0.0605478,82595.0,82591.0,0.00018156]
[1741873242256,0.2701885,82600.0,82599.0,0.1210886]
[1741873242760,0.242194,82598.0,82597.0,0.121091]
[1741873242951,0.242194,82598.0,82591.0,0.00018156]
[1741873242952,0.1210988,82592.0,82591.0,0.00018156]
[1741873243152,0.1210988,82592.0,82591.0,0.12128186]
[1741873243552,0.1210988,82592.0,82591.0,0.00018156]
[1741873244053,0.1211091,82585.0,82559.0,0.01173562]
[1741873244255,0.0605708,82567.0,82560.0,0.1469]
[1741873244556,0.1211443,82561.0,82560.0,0.2680451]
[1741873244853,0.2855126,82584.0,82583.0,0.121112]
[1741873245054,0.1393,82584.0,82583.0,0.121112]
[1741873245450,0.2604106,82584.0,82583.0,0.121112]
[1741873245651,0.1211223,82576.0,82575.0,0.00018168]
[1741873246059,0.1211223,82576.0,82575.0,0.12130548]
[1741873246249,0.1211223,82576.0,82575.0,0.00018168]
[1741873246753,0.0605813,82550.0,82547.0,0.1211619]
[1741873246954,0.0605749,82558.0,82557.0,0.0605738]
[1741873247158,0.0605749,82558.0,82539.0,0.18412]
[1741873247159,0.0595749,82558.0,82551.0,0.0605791]
[1741873247359,0.1644,82576.0,82542.0,0.1494]
[1741873247663,0.1211502,82557.0,82556.0,0.1817219]
[1741873247849,0.1211502,82557.0,82552.0,0.0605782]